fUSD/lending_fUSD_20240211
["ID","MTS","AMOUNT","RATE_DAILY","PERIOD"]
[313736905,1707640837922,54601.43985119,0.0002199,2]
[313736906,1707640885903,972.34161143,0.0002199,2]
[313736907,1707640906431,4787.26786869,0.0002199,2]
[313736908,1707640906456,49814.1719825,0.0002199,2]
[313736909,1707640912861,302.84547986,0.0002199,2]
[313736910,1707640922758,150.0,0.0002199,2]
[313736911,1707640922790,150.0,0.0002199,2]
[313736912,1707640929196,1412.37,0.00021771,2]
[313736913,1707640983367,54601.43985119,0.0002199,2]
[313736914,1707641031210,778.78,0.0001982,2]
[313736915,1707641055436,54601.43985119,0.0002199,2]
[313736916,1707641102784,150.0,0.0002199,2]
[313736917,1707641112363,159.4,0.00021852,2]
[313736918,1707641127963,54601.43985119,0.0002199,2]
[313736919,1707641185480,23900.0,0.00021721,2]
[313736920,1707641190068,2000.0,0.00021721,2]
[313736921,1707641202653,1047.02,0.000279,120]
[313736922,1707641210472,54601.43985119,0.0002199,2]
[313736923,1707641217190,156.5448608,0.00021892,2]
[313736924,1707641223782,203.0,0.00021305,2]
[313736925,1707641229173,200.0,0.0002172,2]
[313736926,1707641282755,150.0,0.0002199,2]
[313736941,1707641394613,1526.4,0.0002199,2]
[313736944,1707641396985,166.21,0.00021707,2]
[313736945,1707641430224,1176.97,0.00021707,2]
[313736950,1707641432009,-1238.02667059,0.00021991,2]
[313736951,1707641432019,-12549.75084508,0.00021991,2]
[313736952,1707641432029,-186.98183063,0.00021992,2]
[313736953,1707641432038,-375.92126523,0.00021992,2]
[313736954,1707641432048,-10827.74842179,0.00021993,2]
[313736955,1707641432118,-1000.0,0.00021993,2]
[313736956,1707641432169,-7429.64950757,0.00021993,2]
[313736957,1707641432180,-1000.0,0.00021994,2]
[313736958,1707641432189,-1000.0,0.00021994,2]
[313736959,1707641432198,-269.70143878,0.00021995,7]
[313736960,1707641432224,-694.3144371,0.00021995,7]
[313737013,1707641438605,-10581.64297679,0.00021995,7]
[313737014,1707641438615,-5473.75659195,0.00022,4]
[313737015,1707641438628,-431.27732561,0.00022,4]
[313737016,1707641438660,-328.63431977,0.00022,4]
[313737017,1707641438674,-5698.99399022,0.00022,4]
[313737144,1707641440834,-701.4146858,0.00022,4]
[313737145,1707641441385,-7365.92308665,0.00022,4]
[313737146,1707641441397,-778.78,0.00022084,2]
[313737147,1707641441406,-3168.51,0.00022271,2]
[313737148,1707641441415,-3226.96,0.00022305,2]
[313737149,1707641441424,-499.99,0.00022305,2]
[313737150,1707641441433,-3337.43,0.00022305,2]
[313737151,1707641441443,-1113.29,0.00022305,2]
[313737152,1707641441452,-159.4,0.00022422,2]
[313737153,1707641441461,-1214.75824296,0.00022438,2]
[313737154,1707641441470,-261.7704,0.00022442,2]
[313737155,1707641441480,-163.62,0.00022471,2]
[313737156,1707641441489,-1214.75824296,0.00022494,2]
[313737157,1707641441498,-418.1,0.000225,2]
[313737158,1707641441510,-200.0,0.00022554,2]
[313737159,1707641441520,-1050.0,0.000226,2]
[313737160,1707641441529,-16844.982,0.00022699,2]
[313737161,1707641441538,-19307.5121,0.000227,2]
[313737162,1707641441548,-34566.0,0.0002277,2]
[313737163,1707641441560,-200.22058926,0.00022796,2]
[313737164,1707641441571,-302.39758669,0.00022796,2]
[313737165,1707641441581,-16202.11322626,0.00022797,2]
[313737166,1707641441591,-20151.9857,0.00022798,2]
[313737167,1707641441601,-2500.0,0.000228,2]
[313737168,1707641441610,-800.0,0.00022801,2]
[313737169,1707641441619,-429.0771734,0.0002285,2]
[313737170,1707641441631,-5542.7476156,0.00022897,2]
[313737171,1707641441641,-221.40677971,0.00022897,2]
[313737172,1707641441653,-381.72923343,0.00022897,2]
[313737173,1707641441663,-181.53570048,0.00022897,2]
[313737174,1707641441672,-423.74363362,0.00022897,2]
[313737175,1707641441682,-1237.3626184,0.00022898,2]
[313737176,1707641441692,-534.19210775,0.00022898,2]
[313737177,1707641441701,-249.77897445,0.00022898,2]
[313737178,1707641441711,-2500.07961308,0.00022898,2]
[313737179,1707641441760,-277.24778743,0.00022898,2]
[313737180,1707641441886,-456.85968103,0.00022898,2]
[313737183,1707641444365,-772.12349458,0.00022898,2]
[313737184,1707641444374,-3143.2721646,0.00022898,2]
[313737185,1707641444442,-2070.13083414,0.00022898,2]
[313737186,1707641444453,-1809.040896,0.00022898,2]
[313737187,1707641444463,-156.20504003,0.00022898,2]
[313737188,1707641444474,-155.0,0.00022898,2]
[313737189,1707641444483,-282.26263637,0.00022898,2]
[313737190,1707641444493,-1070.33128755,0.00022898,2]
[313737191,1707641444503,-19657.36180956,0.000229,2]
[313737192,1707641444515,-2457.09624937,0.000229,2]
[313737193,1707641444527,-19127.78859375,0.000229,2]
[313737194,1707641444538,-1321.86465,0.000229,2]
[313737195,1707641444550,-15516.66848925,0.000229,2]
[313737204,1707641444661,-2439.38277686,0.000229,2]
[313737217,1707641445930,-763.70530403,0.000229,2]
[313737219,1707641445941,-560.50704824,0.000229,2]
[313737220,1707641445953,-508.46377587,0.000229,2]
[313737221,1707641445986,-489.2580151,0.000229,2]
[313737222,1707641445997,-3094.17959164,0.000229,2]
[313737223,1707641446042,-554.91751615,0.000229,2]
[313737224,1707641446052,-591.72647706,0.000229,2]
[313737225,1707641446100,-4466.86110645,0.000229,2]
[313737226,1707641446111,-1634.51033693,0.000229,2]
[313737227,1707641446154,-3302.68931943,0.000229,2]
[313737228,1707641446165,-3316.01377146,0.000229,2]
[313737229,1707641446177,-333.70314074,0.000229,2]
[313737230,1707641446210,-2088.54467138,0.000229,2]
[313737231,1707641446268,-48601.08735673,0.000229,2]
[313737232,1707641446277,-181.21470104,0.000229,2]
[313737255,1707641563806,248.4068284,0.00020698,2]
[313737256,1707641571987,570.11198888,0.00020468,2]
[313737257,1707641572136,720.25,0.00020383,2]
[313737263,1707641611250,267.99889757,0.00020383,2]
[313737265,1707641619219,183.33,0.00021948,2]
[313737266,1707641623272,219.82520052,0.00020383,2]
[313737268,1707641640012,2000.0,0.00021924,2]
[313737269,1707641666657,23900.0,0.00021936,2]
[313737270,1707641676224,840.0,0.00021925,2]
[313737271,1707641687577,181.95,0.00021925,2]
[313737272,1707641891177,973.07605628,0.0002199,2]
[313737273,1707641892136,156.22197088,0.0002199,2]
[313737274,1707641913693,203.0,0.00021342,2]
[313737275,1707641925739,1055.80490423,0.0002199,2]
[313737276,1707641942383,1113.51,0.00021865,2]
[313737278,1707641947771,7432.18645696,0.0002199,2]
[313737282,1707641984406,155.0,0.00021884,2]
[313737283,1707642017051,250.0,0.00021918,2]
[313737285,1707642027725,166.20403779,0.00021895,2]
[313737286,1707642051532,152.62,0.00021948,2]
[313737287,1707642076664,156.22197088,0.0002199,2]
[313737288,1707642079160,156.22197088,0.0002199,2]
[313737289,1707642083666,156.22197088,0.0002199,2]
[313737290,1707642087709,176.13371295,0.00021893,2]
[313737291,1707642088158,156.22197088,0.0002199,2]
[313737348,1707642108877,2000.0,0.00021747,2]
[313737351,1707642145607,193.27,0.00021918,2]
[313737352,1707642183436,23900.0,0.00021757,2]
[313737353,1707642240384,684.23,0.00019853,2]
[313737354,1707642243639,328.0,0.00021751,2]
[313737363,1707642425705,927.92,0.00021741,2]
[313737364,1707642450327,4659.65449296,0.0002199,2]
[313737365,1707642523479,282.5,0.00021772,2]
[313737375,1707642575155,152.62,0.00021948,2]
[313737395,1707642632137,-150.0,0.00021995,2]
[313737396,1707642632148,-150.0,0.00021995,2]
[313737397,1707642632159,-724.48,0.00021996,2]
[313737398,1707642632169,-7.57682951,0.00021996,2]
[313737399,1707642632182,-1126.72977076,0.00021996,2]
[313737400,1707642632257,-9446.27890214,0.00021996,2]
[313737401,1707642632267,-4409.32138906,0.00021997,2]
[313737402,1707642632300,-1137.88118697,0.00021997,2]
[313737403,1707642632408,-6713.62211604,0.00021997,2]
[313737404,1707642632421,-556.17577687,0.00021997,2]
[313737405,1707642632431,-151.79719507,0.00022,2]
[313737406,1707642632441,-516.82,0.00022,2]
[313737407,1707642632451,-166.20403775,0.00022063,2]
[313737408,1707642632460,-684.23,0.00022117,2]
[313737409,1707642632471,-166.20403775,0.0002223,2]
[313737410,1707642632481,-499.99,0.0002223,2]
[313737411,1707642632491,-529.53,0.0002233,2]
[313737412,1707642632505,-1177.67033447,0.0002233,2]
[313737415,1707642632523,-581.98171373,0.0002233,2]
[313737417,1707642633913,203.0,0.00021489,2]
[313737425,1707642638156,-155.0,0.00021994,2]
[313737427,1707642638167,-583.74047893,0.0002233,2]
[313737429,1707642638180,-905.5321137,0.0002233,2]
[313737446,1707642639894,2000.0,0.00021935,2]
[313737457,1707642640785,-65.35535917,0.0002233,2]
[313737458,1707642640795,-166.20403775,0.00022398,2]
[313737459,1707642640804,-152.62,0.0002252,2]
[313737460,1707642640814,-167.0,0.00022558,2]
[313737461,1707642640824,-166.20403775,0.00022565,2]
[313737462,1707642640833,-992.95691223,0.00022572,2]
[313737463,1707642641542,-295.32745352,0.00022572,2]
[313737464,1707642641552,-248.36056311,0.00022669,2]
[313737465,1707642641563,-6037.54160333,0.00022688,2]
[313737466,1707642641574,-21271.7586,0.00022698,2]
[313737467,1707642641583,-166.20403775,0.00022733,2]
[313737468,1707642641594,-19297.8117,0.00022798,2]
[313737469,1707642641604,-200.0,0.00022801,2]
[313737470,1707642641614,-800.0,0.00022801,2]
[313737471,1707642641624,-7098.6952648,0.00022812,2]
[313737472,1707642641636,-282.5,0.00022861,2]
[313737473,1707642641647,-1209.8078839,0.00022896,2]
[313737474,1707642641658,-8842.80123774,0.00022897,2]
[313737475,1707642641673,-2686.70430794,0.00022898,2]
[313737476,1707642641683,-16801.9913264,0.00022898,2]
[313737477,1707642641693,-281.30437133,0.00022898,2]
[313737478,1707642641703,-525.56004844,0.00022898,2]
[313737479,1707642641713,-155.84736174,0.00022898,2]
[313737480,1707642641723,-1442.92706984,0.00022898,2]
[313737481,1707642641733,-308.63401448,0.00022898,2]
[313737482,1707642641743,-697.25548386,0.00022898,2]
[313737483,1707642641753,-175.40514533,0.00022898,2]
[313737485,1707642641762,-155.62246443,0.00022898,2]
[313737486,1707642641772,-162.79611253,0.00022898,2]
[313737488,1707642641781,-209.53265303,0.00022898,2]
[313737490,1707642641791,-3148.06260981,0.00022898,2]
[313737492,1707642641801,-7311.51585721,0.00022898,2]
[313737494,1707642641810,-184.10570936,0.00022898,2]
[313737496,1707642641820,-156.05846883,0.00022898,2]
[313737498,1707642641830,-344.10014908,0.00022898,2]
[313737500,1707642641839,-245.21688013,0.00022898,2]
[313737502,1707642641849,-1172.69991877,0.00022898,2]
[313737504,1707642641858,-155.95483462,0.00022899,2]
[313737506,1707642641868,-264.59547339,0.00022899,2]
[313737507,1707642641877,-1071.96370442,0.00022899,2]
[313737509,1707642641886,-155.897072,0.00022899,2]
[313737510,1707642641896,-200.20692228,0.00022899,2]
[313737511,1707642641906,-2514.34633528,0.00022899,2]
[313737512,1707642641915,-205.5530202,0.00022899,2]
[313737513,1707642641926,-191.64869268,0.00022899,2]
[313737514,1707642641941,-2957.25529896,0.000229,2]
[313737515,1707642641951,-166.20403775,0.000229,2]
[313737516,1707642641960,-5000.0,0.000229,2]
[313737517,1707642641970,-334.20561539,0.000229,2]
[313737518,1707642641980,-7160.27025244,0.000229,2]
[313737519,1707642641989,-152.5,0.000229,2]
[313737520,1707642641999,-566.62860476,0.000229,2]
[313737521,1707642642009,-198.89838414,0.000229,2]
[313737522,1707642642020,-614.39045598,0.000229,2]
[313737523,1707642642029,-421.37399013,0.00022985,2]
[313737524,1707642642040,-306.26140195,0.00022996,2]
[313737525,1707642642049,-175.29309737,0.00022996,2]
[313737526,1707642642060,-1055.84409031,0.00022996,2]
[313737527,1707642642070,-4183.91180286,0.00022996,2]
[313737528,1707642642079,-385.88509067,0.00022996,2]
[313737529,1707642642090,-33283.49574163,0.00022997,2]
[313737530,1707642642101,-984.24808758,0.00022998,2]
[313737531,1707642642111,-1191.54006023,0.00022998,2]
[313737532,1707642642121,-4593.90317992,0.00022998,2]
[313737533,1707642642131,-247.85885747,0.00022998,2]
[313737534,1707642642140,-156.20732878,0.00022998,2]
[313737535,1707642642150,-175.10730335,0.00022998,2]
[313737536,1707642642160,-626.16381703,0.00022998,2]
[313737537,1707642642170,-10551.2728412,0.00022998,2]
[313737538,1707642642179,-942.84501719,0.00022998,2]
[313737539,1707642642189,-156.36025162,0.00022998,2]
[313737540,1707642642199,-155.56554442,0.00022998,2]
[313737541,1707642642209,-3029.53701716,0.00022998,2]
[313737542,1707642642218,-573.2222334,0.00022998,2]
[313737543,1707642642228,-3706.95531002,0.00022998,2]
[313737544,1707642642239,-282.93824671,0.00022998,2]
[313737545,1707642642248,-310.8901,0.00022998,2]
[313737546,1707642642258,-160.55955026,0.00022998,2]
[313737547,1707642642269,-1310.5609934,0.00022998,2]
[313737548,1707642642278,-10214.90617171,0.00022998,2]
[313737552,1707642643187,-4137.02347787,0.00022998,2]
[313737553,1707642643246,-1433.76528052,0.00022998,2]
[313737554,1707642643257,-1807.2954318,0.00022998,2]
[313737555,1707642643266,-5382.2192038,0.00022998,2]
[313737556,1707642643276,-150.01,0.00022999,2]
[313737557,1707642643286,-3313.68237718,0.00022999,2]
[313737558,1707642643296,-303.72504607,0.00022999,10]
[313737559,1707642643307,-303.72504607,0.00022999,10]
[313737560,1707642643317,-303.72504607,0.00022999,10]
[313737561,1707642643326,-303.72504608,0.00022999,10]
[313737562,1707642643338,-303.72504607,0.00022999,10]
[313737563,1707642643348,-303.72504607,0.00022999,10]
[313737564,1707642643357,-150.0,0.00022999,2]
[313737565,1707642643368,-150.0,0.00022999,2]
[313737566,1707642643378,-150.0,0.00022999,2]
[313737567,1707642643388,-150.0,0.00022999,2]
[313737568,1707642643398,-150.0,0.00022999,2]
[313737569,1707642643408,-10166.5367653,0.00023,2]
[313737570,1707642643421,-122583.95275994,0.00023,2]
[313737571,1707642643433,-344.0669848,0.00023,2]
[313737572,1707642643470,-499300.97198416,0.00023,2]
[313737573,1707642643479,-157267.5918185,0.00023,2]
[313737574,1707642643496,-5961.4424995,0.00023,2]
[313737581,1707642646128,-165.77561307,0.000229,2]
[313737582,1707642646137,-371.49559173,0.00023,2]
[313737583,1707642646238,-1803.29637677,0.00023,2]
[313737584,1707642646249,-13708.36834254,0.00023,2]
[313737585,1707642646260,-362.84292556,0.00023,2]
[313737586,1707642646353,-689.20566004,0.00023,2]
[313737587,1707642646366,-1713.60714684,0.00023,2]
[313737588,1707642646396,-285.50337513,0.00022999,2]
[313737589,1707642646406,-1078.96396613,0.00023,2]
[313737590,1707642646417,-24042.11249482,0.00023,2]
[313737591,1707642646452,-276.90558802,0.00023,2]
[313737592,1707642646464,-3017.77944775,0.00023,2]
[313737593,1707642646476,-900.15046863,0.00023,2]
[313737680,1707642656211,421.51903012,0.00020468,2]
[313737681,1707642663883,207.0,0.00021489,2]
[313737683,1707642742198,624.52,0.00020332,2]
[313737687,1707642828959,737.6,0.00021938,2]
[313737688,1707642852085,166.21,0.00021972,2]
[313737690,1707642876389,773.26,0.00021963,2]
[313737691,1707642929137,2000.0,0.0002199,2]
[313737692,1707642932307,1000.0,0.00022398,22]
[313737693,1707642951671,1000.0,0.00023,23]
[313737695,1707643070981,4000.0,0.00022,2]
[313737700,1707643201992,593.29,0.00019911,2]
[313737702,1707643253816,2000.0,0.00021805,2]
[313737703,1707643315835,409.92,0.00021817,2]
[313737704,1707643324150,203.0,0.00021755,2]
[313737705,1707643330128,23900.0,0.00021817,2]
[313737706,1707643435749,169.5,0.0002183,2]
[313737707,1707643480309,156.22197088,0.00021999,2]
[313737726,1707643518109,644.38,0.00021913,2]
[313737729,1707643565593,4529.89802912,0.0002,2]
[313737731,1707643565865,13868.10197088,0.0002,2]
[313737733,1707643664028,563.62,0.00019878,2]
[313737735,1707643702606,152.62,0.00021937,2]
[313737738,1707643734030,2000.0,0.00021806,2]
[313737763,1707643832341,-508.47962113,0.00022,2]
[313737764,1707643832485,-399.90157605,0.00022,2]
[313737765,1707643832498,-1091.61880282,0.00022,2]
[313737766,1707643832509,-563.62,0.00022142,2]
[313737767,1707643832518,-764.05189674,0.00022398,2]
[313737768,1707643832528,-716.83,0.00022398,2]
[313737769,1707643832538,-174.9268575,0.000224,8]
[313737770,1707643832641,-225.0731425,0.000224,8]
[313737771,1707643832650,-391.28609759,0.0002245,2]
[313737772,1707643832663,-346.88390241,0.0002245,2]
[313737773,1707643832672,-738.11,0.0002247,2]
[313737774,1707643832682,-194.04718099,0.000225,2]
[313737776,1707643832694,-409.96149532,0.000225,2]
[313737779,1707643832709,-395.99132369,0.000225,2]
[313737781,1707643832718,-499.99,0.000225,2]
[313737784,1707643832728,-467.35828416,0.000225,8]
[313737786,1707643832739,-285.0,0.000225,8]
[313737788,1707643832750,-147.64171584,0.000225,8]
[313737790,1707643832759,-150.99,0.00022539,2]
[313737792,1707643832768,-1352.08,0.00022539,2]
[313737794,1707643832777,-3739.34,0.0002254,2]
[313737796,1707643832786,-3739.34,0.0002254,2]
[313737797,1707643832796,-553.40144842,0.0002254,2]
[313737798,1707643832808,-337.08423127,0.0002254,2]
[313737799,1707643832819,-443.08471732,0.0002254,2]
[313737800,1707643832857,-399.82952238,0.0002254,2]
[313737802,1707643838488,-2005.94008061,0.0002254,2]
[313737803,1707643838498,-1729.5990064,0.0002254,2]
[313737804,1707643838543,-959.58274431,0.0002254,2]
[313737805,1707643838555,-261.6596807,0.0002254,2]
[313737806,1707643838567,-653.67901261,0.0002254,2]
[313737807,1707643838651,-134.82055598,0.0002254,2]
[313737808,1707643838660,-473.24216152,0.0002254,2]
[313737809,1707643838707,-1035.7632,0.0002254,2]
[313737810,1707643838719,-1600.60318,0.0002254,2]
[313737811,1707643838731,-305.14986683,0.0002254,2]
[313737822,1707643840951,-324.58159165,0.0002254,2]
[313737823,1707643840960,-282.24332757,0.000226,8]
[313737824,1707643841730,-1117.75667243,0.000226,8]
[313737825,1707643841739,-630.66644275,0.000227,2]
[313737853,1707643843347,-665.24316123,0.000227,2]
[313737857,1707643843464,-652.20937819,0.000227,2]
[313737858,1707643843554,-1364.58483223,0.000227,2]
[313737859,1707643843575,-730.26200384,0.000227,2]
[313737867,1707643846366,-531.97500728,0.000227,2]
[313737868,1707643846588,-414.10514432,0.000227,2]
[313737869,1707643846740,-14156.22653016,0.000227,2]
[313737870,1707643846750,-1035.7632,0.000227,2]
[313737871,1707643846759,-1900.0,0.000227,8]
[313737872,1707643846769,-155.84,0.0002277,2]
[313737873,1707643846779,-155.841,0.0002277,2]
[313737874,1707643846788,-155.841,0.0002277,2]
[313737875,1707643846798,-155.841,0.0002277,2]
[313737876,1707643846807,-500.93220998,0.00022798,2]
[313737877,1707643846817,-625.88386743,0.00022799,2]
[313737878,1707643846826,-371.09436345,0.00022799,2]
[313737879,1707643846837,-748.19670898,0.000228,2]
[313737880,1707643846849,-50017.80608911,0.000228,2]
[313737881,1707643863326,426.32757035,0.00021848,2]
[313737883,1707644103974,290.04,0.00021886,2]
[313737884,1707644135182,250.02,0.000279,120]
[313737885,1707644179964,575.86,0.00019937,2]
[313737887,1707644223609,2000.0,0.00021845,2]
[313737888,1707644354462,23900.0,0.00021821,2]
[313737889,1707644404458,203.0,0.00021145,2]
[313737890,1707644409912,169.5,0.00021855,2]
[313737891,1707644419744,975.65,0.00021844,2]
[313737892,1707644454275,4099.88,0.00021842,2]
[313737894,1707644507534,500.0,0.00021857,2]
[313737896,1707644627217,721.29,0.00021836,2]
[313737898,1707644706205,2000.0,0.00021832,2]
[313737899,1707644775895,547.06,0.00019938,2]
[313737900,1707644836602,23900.0,0.0002184,2]
[313737901,1707644859284,166.21,0.0002184,2]
[313737953,1707645037574,-363.25872601,0.00022183,2]
[313737954,1707645037589,-636.74127399,0.00022183,2]
[313737955,1707645037599,-547.06,0.00022202,2]
[313737956,1707645037610,-500.0,0.0002226,2]
[313737957,1707645037620,-200.0,0.000223,8]
[313737958,1707645037630,-500.0,0.000224,8]
[313737959,1707645037641,-1000.0,0.000225,2]
[313737960,1707645037651,-800.0,0.000225,8]
[313737961,1707645037661,-163.62,0.00022533,2]
[313737962,1707645037671,-203.0,0.00022573,2]
[313737963,1707645037683,-1666.16,0.00022573,2]
[313737964,1707645037693,-5614.69,0.00022573,2]
[313737965,1707645037704,-1833.8487,0.0002258,2]
[313737966,1707645037713,-828.3,0.0002258,2]
[313737967,1707645037723,-499.99,0.0002258,2]
[313737968,1707645037733,-569.8,0.0002258,2]
[313737969,1707645037742,-2686.73606971,0.00022588,2]
[313737970,1707645037752,-1000.0,0.000226,8]
[313737971,1707645037761,-165.54,0.00022667,2]
[313737972,1707645037771,-8100.35,0.00022667,2]
[313737973,1707645037781,-1009.42862918,0.0002267,2]
[313737974,1707645037791,-636.73963912,0.00022679,2]
[313737975,1707645037801,-436.77654375,0.0002268,3]
[313737976,1707645037811,-312015.74973348,0.0002268,2]
[313737977,1707645037821,-22061.887,0.00022698,2]
[313737978,1707645037831,-155.30061745,0.000227,2]
[313737979,1707645037841,-1300.0,0.000227,8]
[313737980,1707645037851,-200.0,0.00022766,2]
[313737981,1707645037861,-1816.12904558,0.00022797,2]
[313737982,1707645037871,-285.80236375,0.00022798,2]
[313737983,1707645037881,-179.44721473,0.00022798,2]
[313737984,1707645037891,-2423.97554816,0.00022798,2]
[313737985,1707645037900,-230.34116261,0.00022798,2]
[313737986,1707645037910,-28285.38817538,0.00022798,2]
[313737987,1707645037921,-158.36561926,0.00022798,2]
[313737988,1707645037931,-5355.45944021,0.00022798,2]
[313737989,1707645037941,-162981.53389806,0.00022798,2]
[313737990,1707645037951,-624.61821592,0.00022799,2]
[313737991,1707645037960,-4709.78111964,0.00022799,2]
[313737992,1707645037970,-110263.80377788,0.000228,2]
[313737993,1707645037981,-442.8317491,0.000228,2]
[313737994,1707645037990,-198.89838414,0.000228,2]
[313737995,1707645038000,-506.05714575,0.000228,2]
[313737996,1707645038010,-2101.333736,0.000228,2]
[313737997,1707645038019,-200.0,0.000228,8]
[313737999,1707645038029,-500.0,0.00022808,2]
[313738001,1707645038038,-200.0,0.00022816,2]
[313738003,1707645038048,-800.0,0.00022816,2]
[313738006,1707645038058,-220.615,0.0002284,2]
[313738007,1707645038068,-397.0,0.0002284,2]
[313738010,1707645038078,-541.313,0.0002284,2]
[313738012,1707645038088,-2831.0,0.0002284,2]
[313738013,1707645038097,-1858.0,0.0002284,2]
[313738015,1707645038107,-864.0,0.0002284,2]
[313738016,1707645038117,-183.048,0.0002284,2]
[313738017,1707645038127,-952.0,0.0002284,2]
[313738018,1707645038137,-205.804,0.0002284,2]
[313738019,1707645038147,-1232.0,0.0002284,2]
[313738020,1707645038156,-1253.0,0.0002284,2]
[313738021,1707645038166,-218.168,0.0002284,2]
[313738022,1707645038176,-429.0,0.0002284,2]
[313738023,1707645038186,-1009.296,0.0002284,2]
[313738024,1707645038195,-1946.0,0.0002284,2]
[313738025,1707645038208,-240.747,0.0002284,2]
[313738026,1707645038217,-511.294,0.0002284,2]
[313738027,1707645038227,-859.0,0.0002284,2]
[313738028,1707645038237,-192.342,0.0002284,2]
[313738029,1707645038248,-1138.0,0.0002284,2]
[313738030,1707645038257,-373.294,0.0002284,2]
[313738031,1707645038267,-453.0,0.0002284,2]
[313738032,1707645038277,-343.0,0.0002284,2]
[313738033,1707645038287,-505.16,0.0002284,2]
[313738034,1707645038298,-4205.0,0.0002284,2]
[313738035,1707645038316,-164.167,0.0002284,2]
[313738036,1707645038325,-2923.0,0.0002284,2]
[313738037,1707645038334,-8154.0,0.0002284,2]
[313738038,1707645038345,-7407.0,0.0002284,2]
[313738039,1707645038354,-2287.0,0.0002284,2]
[313738040,1707645038364,-19823.0,0.0002284,2]
[313738041,1707645038373,-2335.604,0.0002284,2]
[313738042,1707645038383,-151.358,0.0002284,2]
[313738043,1707645038392,-1036.0,0.0002284,2]
[313738044,1707645038402,-152.011,0.0002284,2]
[313738045,1707645038412,-181.629,0.0002284,2]
[313738046,1707645038421,-205.618,0.0002284,2]
[313738047,1707645038432,-151.091,0.0002284,2]
[313738048,1707645038442,-451.85439023,0.0002285,2]
[313738049,1707645038452,-442.8317491,0.0002285,2]
[313738050,1707645038461,-3869.14152357,0.0002285,2]
[313738051,1707645038472,-506.05714573,0.0002285,2]
[313738052,1707645038481,-2101.33373599,0.0002285,2]
[313738053,1707645038491,-1000.0,0.00022885,2]
[313738054,1707645038501,-1000.0,0.00022885,2]
[313738055,1707645038510,-1000.0,0.00022885,2]
[313738056,1707645038519,-1000.0,0.00022885,2]
[313738057,1707645038529,-1000.0,0.00022885,2]
[313738058,1707645038539,-1000.0,0.00022885,2]
[313738059,1707645038768,-1000.0,0.00022885,2]
[313738060,1707645038828,-1000.0,0.00022885,2]
[313738061,1707645038838,-1000.0,0.00022885,2]
[313738062,1707645038847,-1000.0,0.00022885,2]
[313738063,1707645038857,-1000.0,0.00022885,2]
[313738064,1707645038866,-1000.0,0.00022885,2]
[313738065,1707645038875,-1000.0,0.00022885,2]
[313738066,1707645038884,-1000.0,0.00022885,2]
[313738067,1707645038894,-1000.0,0.00022885,2]
[313738068,1707645038903,-1000.0,0.00022885,2]
[313738069,1707645038913,-1000.0,0.00022885,2]
[313738070,1707645038922,-1000.0,0.00022885,2]
[313738071,1707645038934,-1000.0,0.00022885,2]
[313738072,1707645038946,-1000.0,0.00022885,2]
[313738073,1707645038956,-1000.0,0.00022885,2]
[313738074,1707645038965,-1000.0,0.00022885,2]
[313738075,1707645038975,-1000.0,0.00022885,2]
[313738076,1707645038984,-1000.0,0.00022885,2]
[313738077,1707645038994,-480.7293,0.00022885,2]
[313738078,1707645039002,-617.704,0.00022885,2]
[313738079,1707645039011,-506949.11597386,0.00022899,2]
[313738080,1707645039021,-725.46,0.000229,2]
[313738081,1707645039030,-6563.58106481,0.000229,2]
[313738082,1707645039039,-5000.0,0.000229,2]
[313738083,1707645039050,-1147525.4172004,0.000229,2]